[Event "Titled Tuesday Blitz May 9 Late 2023"]
[White "Barria Santos, Jose Guilherme"]
[Black "Koutsin"]
[WhiteFideId "1939300"]
[WhiteElo "2266"]
[BlackElo "2444"]
[Result "1-0"]
[Round "10"]
[TimeControl "180+2"]
[Date "2023.05.09"]
[WhiteClock "0:01:43"]
[BlackClock "0:00:10"]

1. c3 {[%clk 0:03:00]}  d5 {[%clk 0:02:58]} 2. Qa4+ {[%clk 0:03:01]}  c6 {[%clk 0:02:58]} 3. Qh4 {[%clk 0:03:02]}  Nf6 {[%clk 0:02:51]} 4. d4 {[%clk 0:03:02]}  e6 {[%clk 0:02:46]} 5. f3 {[%clk 0:02:52]}  h6 {[%clk 0:02:43]} 6. Nd2 {[%clk 0:02:50]}  c5 {[%clk 0:02:34]} 7. dxc5 {[%clk 0:02:46]}  Bxc5 {[%clk 0:02:32]} 8. Nb3 {[%clk 0:02:47]}  Be7 {[%clk 0:02:26]} 9. Qf2 {[%clk 0:02:46]}  Nc6 {[%clk 0:02:24]} 10. Be3 {[%clk 0:02:46]}  e5 {[%clk 0:02:14]} 11. Bc5 {[%clk 0:02:46]}  O-O {[%clk 0:02:08]} 12. Bxe7 {[%clk 0:02:45]}  Qxe7 {[%clk 0:02:08]} 13. Qc5 {[%clk 0:02:44]}  Qxc5 {[%clk 0:02:02]} 14. Nxc5 {[%clk 0:02:44]}  b6 {[%clk 0:02:03]} 15. Nb3 {[%clk 0:02:43]}  a5 {[%clk 0:01:58]} 16. e3 {[%clk 0:02:42]}  a4 {[%clk 0:01:55]} 17. Nd2 {[%clk 0:02:35]}  Bd7 {[%clk 0:01:41]} 18. Ne2 {[%clk 0:02:28]}  Rfc8 {[%clk 0:01:41]} 19. Nb1 {[%clk 0:02:15]}  Na5 {[%clk 0:01:37]} 20. Na3 {[%clk 0:02:14]}  b5 {[%clk 0:01:33]} 21. Ng3 {[%clk 0:02:10]}  Nc4 {[%clk 0:01:30]} 22. Bxc4 {[%clk 0:02:07]}  bxc4 {[%clk 0:01:31]} 23. Nc2 {[%clk 0:02:07]}  Rab8 {[%clk 0:01:23]} 24. O-O-O {[%clk 0:02:06]}  Be6 {[%clk 0:01:21]} 25. a3 {[%clk 0:02:05]}  g6 {[%clk 0:01:19]} 26. Nb4 {[%clk 0:02:05]}  Rb5 {[%clk 0:01:14]} 27. e4 {[%clk 0:01:59]}  dxe4 {[%clk 0:01:08]} 28. Nxe4 {[%clk 0:01:59]}  Nxe4 {[%clk 0:01:06]} 29. fxe4 {[%clk 0:02:00]}  f5 {[%clk 0:00:47]} 30. Rd6 {[%clk 0:01:58]}  Kf7 {[%clk 0:00:45]} 31. Ra6 {[%clk 0:01:59]}  f4 {[%clk 0:00:23]} 32. Rd1 {[%clk 0:01:50]}  Rb7 {[%clk 0:00:17]} 33. Rdd6 {[%clk 0:01:48]}  Re8 {[%clk 0:00:16]} 34. Nc6 {[%clk 0:01:45]}  Rb5 {[%clk 0:00:13]} 35. Rxe6 {[%clk 0:01:43]}  Rxe6 {[%clk 0:00:13]} 36. Nd8+ {[%clk 0:01:43]}  Ke7 {[%clk 0:00:12]} 37. Nxe6 {[%clk 0:01:44]}  g5 {[%clk 0:00:10]} 38. Ng7 {[%clk 0:01:43]} 1-0


[Site "https://www.chess.com"]

[Event "Titled Tuesday Blitz May 9 Late 2023"]
[White "Martic, Ivan"]
[Black "Kuznetsov, Felix"]
[WhiteFideId "929301"]
[BlackFideId "34147990"]
[WhiteElo "2360"]
[BlackElo "2281"]
[Result "0-1"]
[Round "10"]
[TimeControl "180+2"]
[Date "2023.05.09"]
[WhiteClock "0:00:06"]
[BlackClock "0:00:07"]

1. d4 {[%clk 0:02:56]}  Nf6 {[%clk 0:02:59]} 2. c4 {[%clk 0:02:56]}  e6 {[%clk 0:03:00]} 3. Nc3 {[%clk 0:02:56]}  Bb4 {[%clk 0:02:59]} 4. e3 {[%clk 0:02:56]}  O-O {[%clk 0:02:56]} 5. Ne2 {[%clk 0:02:56]}  Re8 {[%clk 0:02:54]} 6. a3 {[%clk 0:02:51]}  Bf8 {[%clk 0:02:54]} 7. Nf4 {[%clk 0:02:52]}  d5 {[%clk 0:02:54]} 8. cxd5 {[%clk 0:02:51]}  exd5 {[%clk 0:02:55]} 9. Bd3 {[%clk 0:02:51]}  c6 {[%clk 0:02:54]} 10. b4 {[%clk 0:02:47]}  b5 {[%clk 0:02:51]} 11. O-O {[%clk 0:02:46]}  a5 {[%clk 0:02:52]} 12. Rb1 {[%clk 0:02:42]}  Nbd7 {[%clk 0:02:46]} 13. f3 {[%clk 0:02:28]}  Nb6 {[%clk 0:02:36]} 14. Kh1 {[%clk 0:02:17]}  axb4 {[%clk 0:02:33]} 15. axb4 {[%clk 0:02:18]}  Na4 {[%clk 0:02:31]} 16. Nxa4 {[%clk 0:02:15]}  Rxa4 {[%clk 0:02:31]} 17. Bd2 {[%clk 0:02:12]}  Bd7 {[%clk 0:02:24]} 18. g4 {[%clk 0:02:04]}  h6 {[%clk 0:02:17]} 19. Rg1 {[%clk 0:01:59]}  Qe7 {[%clk 0:01:50]} 20. Bc2 {[%clk 0:01:37]}  Ra3 {[%clk 0:01:42]} 21. Nd3 {[%clk 0:01:34]}  Qe6 {[%clk 0:00:50]} 22. Ne5 {[%clk 0:01:31]}  Bd6 {[%clk 0:00:46]} 23. Bf5 {[%clk 0:01:29]}  Qe7 {[%clk 0:00:46]} 24. Bxd7 {[%clk 0:01:26]}  Nxd7 {[%clk 0:00:47]} 25. Nxc6 {[%clk 0:01:26]}  Qh4 {[%clk 0:00:44]} 26. Rg2 {[%clk 0:01:24]}  Ra2 {[%clk 0:00:31]} 27. Qb3 {[%clk 0:01:16]}  Rea8 {[%clk 0:00:27]} 28. Be1 {[%clk 0:01:11]}  Qh3 {[%clk 0:00:20]} 29. Rbb2 {[%clk 0:00:36]}  Ra1 {[%clk 0:00:16]} 30. Rbe2 {[%clk 0:00:29]}  Bxh2 {[%clk 0:00:15]} 31. Qxd5 {[%clk 0:00:18]}  Bg3+ {[%clk 0:00:11]} 32. Kg1 {[%clk 0:00:18]}  Bxe1 {[%clk 0:00:11]} 33. Ne7+ {[%clk 0:00:17]}  Kf8 {[%clk 0:00:09]} 34. Ng6+ {[%clk 0:00:10]}  fxg6 {[%clk 0:00:08]} 35. Ra2 {[%clk 0:00:09]}  Bg3+ {[%clk 0:00:06]} 36. Rxa1 {[%clk 0:00:06]}  Rxa1# {[%clk 0:00:07]} 0-1


[Site "https://www.chess.com"]

[Event "Titled Tuesday Blitz May 9 Late 2023"]
[White "Aydincelebi, Kagan"]
[Black "Papayan, Oleg"]
[WhiteFideId "6361102"]
[BlackFideId "4193911"]
[WhiteElo "2180"]
[BlackElo "2171"]
[Result "1-0"]
[Round "10"]
[TimeControl "180+2"]
[Date "2023.05.09"]
[WhiteClock "0:01:42"]
[BlackClock "0:00:17"]

1. e4 {[%clk 0:03:00]}  c5 {[%clk 0:02:57]} 2. Nf3 {[%clk 0:03:00]}  e6 {[%clk 0:02:58]} 3. c3 {[%clk 0:03:00]}  d5 {[%clk 0:02:56]} 4. exd5 {[%clk 0:03:00]}  Qxd5 {[%clk 0:02:57]} 5. d4 {[%clk 0:03:01]}  Nf6 {[%clk 0:02:57]} 6. Be3 {[%clk 0:03:02]}  cxd4 {[%clk 0:02:54]} 7. cxd4 {[%clk 0:03:03]}  Nc6 {[%clk 0:02:52]} 8. Nc3 {[%clk 0:03:04]}  Qd6 {[%clk 0:02:52]} 9. Bd3 {[%clk 0:03:04]}  Be7 {[%clk 0:02:52]} 10. O-O {[%clk 0:03:05]}  O-O {[%clk 0:02:52]} 11. Qe2 {[%clk 0:03:06]}  Nb4 {[%clk 0:02:46]} 12. Bb1 {[%clk 0:03:01]}  b6 {[%clk 0:02:43]} 13. a3 {[%clk 0:02:59]}  Ba6 {[%clk 0:02:43]} 14. Nb5 {[%clk 0:02:58]}  Qd7 {[%clk 0:02:08]} 15. a4 {[%clk 0:02:56]}  Bd6 {[%clk 0:01:54]} 16. Bg5 {[%clk 0:02:53]}  Bxb5 {[%clk 0:01:47]} 17. axb5 {[%clk 0:02:52]}  Nbd5 {[%clk 0:01:44]} 18. Ne5 {[%clk 0:02:47]}  Bxe5 {[%clk 0:01:38]} 19. dxe5 {[%clk 0:02:48]}  Ne8 {[%clk 0:01:38]} 20. h4 {[%clk 0:02:40]}  Rc8 {[%clk 0:01:28]} 21. h5 {[%clk 0:02:38]}  f5 {[%clk 0:01:23]} 22. exf6 {[%clk 0:02:37]}  Nexf6 {[%clk 0:01:20]} 23. Ra3 {[%clk 0:02:34]}  h6 {[%clk 0:01:10]} 24. Bd2 {[%clk 0:02:30]}  e5 {[%clk 0:00:58]} 25. Rg3 {[%clk 0:02:20]}  Nf4 {[%clk 0:00:47]} 26. Bxf4 {[%clk 0:01:53]}  exf4 {[%clk 0:00:48]} 27. Rg6 {[%clk 0:01:49]}  Rc5 {[%clk 0:00:38]} 28. Rd1 {[%clk 0:01:44]}  Qxb5 {[%clk 0:00:36]} 29. Qe7 {[%clk 0:01:44]}  Ne8 {[%clk 0:00:17]} 30. Ba2+ {[%clk 0:01:42]} 1-0


[Site "https://www.chess.com"]

[Event "Titled Tuesday Blitz May 9 Late 2023"]
[White "Boder, Jan"]
[Black "TheKnightOfBosnia"]
[WhiteFideId "16243226"]
[WhiteElo "2241"]
[BlackElo "2472"]
[Result "1-0"]
[Round "10"]
[TimeControl "180+2"]
[Date "2023.05.09"]
[WhiteClock "0:00:03"]
[BlackClock "0:00:02"]

1. c4 {[%clk 0:02:43]}  c5 {[%clk 0:02:59]} 2. g3 {[%clk 0:02:43]}  Nc6 {[%clk 0:02:57]} 3. Bg2 {[%clk 0:02:43]}  g6 {[%clk 0:02:57]} 4. Nc3 {[%clk 0:02:43]}  Bg7 {[%clk 0:02:58]} 5. a3 {[%clk 0:02:43]}  e6 {[%clk 0:02:58]} 6. b4 {[%clk 0:02:40]}  cxb4 {[%clk 0:02:57]} 7. axb4 {[%clk 0:02:39]}  Nxb4 {[%clk 0:02:54]} 8. Ba3 {[%clk 0:02:38]}  Nc6 {[%clk 0:02:52]} 9. Nb5 {[%clk 0:02:38]}  Nge7 {[%clk 0:02:47]} 10. Bd6 {[%clk 0:02:30]}  O-O {[%clk 0:02:41]} 11. Bc7 {[%clk 0:02:30]}  Qe8 {[%clk 0:02:19]} 12. Nd6 {[%clk 0:02:29]}  Bxa1 {[%clk 0:02:05]} 13. Qxa1 {[%clk 0:02:30]}  Nb4 {[%clk 0:01:58]} 14. Qc3 {[%clk 0:01:21]}  Nec6 {[%clk 0:01:00]} 15. Nxe8 {[%clk 0:01:15]}  Rxe8 {[%clk 0:01:01]} 16. h4 {[%clk 0:01:11]}  a5 {[%clk 0:00:53]} 17. h5 {[%clk 0:01:07]}  a4 {[%clk 0:00:50]} 18. hxg6 {[%clk 0:01:07]}  fxg6 {[%clk 0:00:51]} 19. Nf3 {[%clk 0:00:45]}  a3 {[%clk 0:00:49]} 20. O-O {[%clk 0:00:45]}  d5 {[%clk 0:00:39]} 21. Ne5 {[%clk 0:00:42]}  d4 {[%clk 0:00:34]} 22. Qa1 {[%clk 0:00:17]}  Nc2 {[%clk 0:00:32]} 23. Qa2 {[%clk 0:00:16]}  N6b4 {[%clk 0:00:32]} 24. Qb3 {[%clk 0:00:15]}  a2 {[%clk 0:00:32]} 25. Kh2 {[%clk 0:00:09]}  a1=Q {[%clk 0:00:30]} 26. Rxa1 {[%clk 0:00:08]}  Rxa1 {[%clk 0:00:31]} 27. Qf3 {[%clk 0:00:08]}  Rf8 {[%clk 0:00:28]} 28. Qg4 {[%clk 0:00:08]}  Rf6 {[%clk 0:00:20]} 29. Bd8 {[%clk 0:00:08]}  Rf5 {[%clk 0:00:12]} 30. Nxg6 {[%clk 0:00:08]}  hxg6 {[%clk 0:00:12]} 31. Qxg6+ {[%clk 0:00:09]}  Kf8 {[%clk 0:00:13]} 32. Be4 {[%clk 0:00:09]}  Rf7 {[%clk 0:00:11]} 33. Qh6+ {[%clk 0:00:05]}  Ke8 {[%clk 0:00:11]} 34. Bg5 {[%clk 0:00:05]}  Kd7 {[%clk 0:00:10]} 35. Bf3 {[%clk 0:00:04]}  Nc6 {[%clk 0:00:09]} 36. Qg6 {[%clk 0:00:05]}  Re7 {[%clk 0:00:08]} 37. Qxc2 {[%clk 0:00:05]}  Rg7 {[%clk 0:00:06]} 38. Bxc6+ {[%clk 0:00:05]}  bxc6 {[%clk 0:00:07]} 39. f4 {[%clk 0:00:05]}  Ra8 {[%clk 0:00:06]} 40. Qe4 {[%clk 0:00:05]}  Bb7 {[%clk 0:00:07]} 41. Qxd4+ {[%clk 0:00:05]}  Kc7 {[%clk 0:00:06]} 42. Qxg7+ {[%clk 0:00:06]}  Kb6 {[%clk 0:00:07]} 43. Qe5 {[%clk 0:00:05]}  Re8 {[%clk 0:00:06]} 44. e4 {[%clk 0:00:06]}  c5 {[%clk 0:00:06]} 45. d4 {[%clk 0:00:05]}  cxd4 {[%clk 0:00:06]} 46. Qxd4+ {[%clk 0:00:06]}  Kc7 {[%clk 0:00:07]} 47. c5 {[%clk 0:00:07]}  Bc6 {[%clk 0:00:06]} 48. Qd6+ {[%clk 0:00:07]}  Kb7 {[%clk 0:00:07]} 49. Bf6 {[%clk 0:00:04]}  Ra8 {[%clk 0:00:07]} 50. g4 {[%clk 0:00:03]}  Bxe4 {[%clk 0:00:06]} 51. Qxe6 {[%clk 0:00:03]}  Bc6 {[%clk 0:00:05]} 52. Qe7+ {[%clk 0:00:03]}  Ka6 {[%clk 0:00:06]} 53. Qc7 {[%clk 0:00:03]}  Be4 {[%clk 0:00:02]} 54. Qb6# {[%clk 0:00:03]} 1-0


[Site "https://www.chess.com"]

[Event "Titled Tuesday Blitz May 9 Late 2023"]
[White "Hambleton, Aman"]
[Black "Nastase, Robert-Paul"]
[WhiteFideId "2606577"]
[BlackFideId "1221175"]
[WhiteElo "2511"]
[BlackElo "2175"]
[Result "1-0"]
[Round "10"]
[TimeControl "180+2"]
[Date "2023.05.09"]
[WhiteClock "0:01:47"]
[BlackClock "0:00:02"]

1. d4 {[%clk 0:03:00]}  Nf6 {[%clk 0:02:56]} 2. Bf4 {[%clk 0:03:01]}  e6 {[%clk 0:02:53]} 3. e3 {[%clk 0:03:01]}  c5 {[%clk 0:02:47]} 4. c3 {[%clk 0:03:01]}  Qb6 {[%clk 0:02:46]} 5. Qb3 {[%clk 0:03:01]}  Qxb3 {[%clk 0:01:53]} 6. axb3 {[%clk 0:03:02]}  Nc6 {[%clk 0:01:36]} 7. h3 {[%clk 0:03:02]}  d6 {[%clk 0:01:30]} 8. Nf3 {[%clk 0:03:01]}  Bd7 {[%clk 0:01:21]} 9. Nbd2 {[%clk 0:03:02]}  O-O-O {[%clk 0:00:52]} 10. Nc4 {[%clk 0:02:57]}  Be8 {[%clk 0:00:44]} 11. dxc5 {[%clk 0:02:57]}  dxc5 {[%clk 0:00:17]} 12. Rxa7 {[%clk 0:02:57]}  Nd5 {[%clk 0:00:02]} 13. Ra8+ {[%clk 0:02:55]}  Kd7 {[%clk 0:00:03]} 14. Nfe5+ {[%clk 0:02:41]}  Nxe5 {[%clk 0:00:03]} 15. Nxe5+ {[%clk 0:02:42]}  Ke7 {[%clk 0:00:03]} 16. Ra7 {[%clk 0:02:39]}  Kf6 {[%clk 0:00:01]} 17. Rxb7 {[%clk 0:01:50]}  Nxf4 {[%clk 0:00:01]} 18. exf4 {[%clk 0:01:51]}  g6 {[%clk 0:00:01]} 19. Bb5 {[%clk 0:01:47]}  Bd6 {[%clk 0:00:01]} 20. Bxe8 {[%clk 0:01:46]}  Bxe5 {[%clk 0:00:02]} 21. Rxf7# {[%clk 0:01:47]} 1-0


[Site "https://www.chess.com"]

[Event "Titled Tuesday Blitz May 9 Late 2023"]
[White "Pein, Jonathan"]
[Black "Mirzoev, Azer"]
[WhiteFideId "417092"]
[BlackFideId "13400304"]
[WhiteElo "2151"]
[BlackElo "2525"]
[Result "0-1"]
[Round "10"]
[TimeControl "180+2"]
[Date "2023.05.09"]
[WhiteClock "0:00:00"]
[BlackClock "0:00:27"]

1. e4 {[%clk 0:02:57]}  c5 {[%clk 0:03:00]} 2. g3 {[%clk 0:02:57]}  e6 {[%clk 0:03:01]} 3. Bg2 {[%clk 0:02:58]}  Nc6 {[%clk 0:03:01]} 4. Ne2 {[%clk 0:02:59]}  b5 {[%clk 0:03:00]} 5. d4 {[%clk 0:02:58]}  cxd4 {[%clk 0:02:57]} 6. Nxd4 {[%clk 0:02:59]}  Nxd4 {[%clk 0:02:55]} 7. Qxd4 {[%clk 0:02:59]}  Bb7 {[%clk 0:02:56]} 8. O-O {[%clk 0:02:58]}  a6 {[%clk 0:02:54]} 9. Nc3 {[%clk 0:02:51]}  Rc8 {[%clk 0:02:53]} 10. Be3 {[%clk 0:02:12]}  Qc7 {[%clk 0:02:48]} 11. Rad1 {[%clk 0:02:08]}  Qc6 {[%clk 0:02:37]} 12. Rfe1 {[%clk 0:02:04]}  Nf6 {[%clk 0:02:35]} 13. Nd5 {[%clk 0:02:02]}  exd5 {[%clk 0:02:23]} 14. exd5 {[%clk 0:02:02]}  Qc4 {[%clk 0:01:13]} 15. Qe5+ {[%clk 0:01:50]}  Kd8 {[%clk 0:00:57]} 16. Bb6+ {[%clk 0:01:47]}  Rc7 {[%clk 0:00:56]} 17. d6 {[%clk 0:01:44]}  Bxd6 {[%clk 0:00:56]} 18. Qxd6 {[%clk 0:01:40]}  Bxg2 {[%clk 0:00:55]} 19. Kxg2 {[%clk 0:01:20]}  Kc8 {[%clk 0:00:46]} 20. Bxc7 {[%clk 0:01:18]}  Qxc7 {[%clk 0:00:46]} 21. Qxa6+ {[%clk 0:01:10]}  Qb7+ {[%clk 0:00:46]} 22. Qxb7+ {[%clk 0:01:10]}  Kxb7 {[%clk 0:00:47]} 23. Re7 {[%clk 0:01:10]}  Rf8 {[%clk 0:00:46]} 24. g4 {[%clk 0:00:55]}  h6 {[%clk 0:00:44]} 25. h4 {[%clk 0:00:53]}  Kc6 {[%clk 0:00:40]} 26. g5 {[%clk 0:00:41]}  hxg5 {[%clk 0:00:39]} 27. hxg5 {[%clk 0:00:42]}  Nd5 {[%clk 0:00:40]} 28. Re5 {[%clk 0:00:38]}  Nf4+ {[%clk 0:00:39]} 29. Kf3 {[%clk 0:00:32]}  Ne6 {[%clk 0:00:38]} 30. Red5 {[%clk 0:00:15]}  Ra8 {[%clk 0:00:35]} 31. Rd6+ {[%clk 0:00:12]}  Kc5 {[%clk 0:00:34]} 32. R1d5+ {[%clk 0:00:07]}  Kc4 {[%clk 0:00:34]} 33. a3 {[%clk 0:00:00]}  b4 {[%clk 0:00:27]} 0-1


[Site "https://www.chess.com"]

[Event "Titled Tuesday Blitz May 9 Late 2023"]
[White "D`Arruda, Ricardo D."]
[Black "Ibadov, Dashgyn"]
[WhiteFideId "100692"]
[BlackFideId "24107514"]
[WhiteElo "2417"]
[BlackElo "2208"]
[Result "0-1"]
[Round "10"]
[TimeControl "180+2"]
[Date "2023.05.09"]
[WhiteClock "0:01:05"]
[BlackClock "0:01:37"]

1. Nf3 {[%clk 0:02:12]}  c5 {[%clk 0:03:00]} 2. c4 {[%clk 0:02:08]}  Nf6 {[%clk 0:02:57]} 3. Nc3 {[%clk 0:02:09]}  e6 {[%clk 0:02:56]} 4. e3 {[%clk 0:02:10]}  Be7 {[%clk 0:02:55]} 5. d4 {[%clk 0:02:11]}  cxd4 {[%clk 0:02:55]} 6. g3 {[%clk 0:02:12]}  dxc3 {[%clk 0:02:54]} 7. Nd4 {[%clk 0:02:13]}  cxb2 {[%clk 0:02:50]} 8. Bxb2 {[%clk 0:02:10]}  Nc6 {[%clk 0:02:51]} 9. Bg2 {[%clk 0:02:07]}  Qa5+ {[%clk 0:02:50]} 10. Ke2 {[%clk 0:02:06]}  O-O {[%clk 0:02:45]} 11. h3 {[%clk 0:02:04]}  d5 {[%clk 0:02:44]} 12. Re1 {[%clk 0:02:02]}  dxc4 {[%clk 0:02:42]} 13. Bxc6 {[%clk 0:01:57]}  bxc6 {[%clk 0:02:38]} 14. Nxc6 {[%clk 0:01:58]}  Qc7 {[%clk 0:02:37]} 15. Nxe7+ {[%clk 0:01:59]}  Qxe7 {[%clk 0:02:37]} 16. Kf1 {[%clk 0:01:56]}  Bb7 {[%clk 0:02:36]} 17. f3 {[%clk 0:01:54]}  Rfd8 {[%clk 0:02:31]} 18. Qe2 {[%clk 0:01:53]}  Qc5 {[%clk 0:02:28]} 19. Rac1 {[%clk 0:01:51]}  Rac8 {[%clk 0:02:22]} 20. Kg2 {[%clk 0:01:47]}  Rd3 {[%clk 0:02:16]} 21. Rc2 {[%clk 0:01:42]}  Rcd8 {[%clk 0:02:13]} 22. Bd4 {[%clk 0:01:37]}  Qd5 {[%clk 0:02:08]} 23. Rec1 {[%clk 0:01:31]}  Ba6 {[%clk 0:01:38]} 24. Bxa7 {[%clk 0:01:22]}  Rd2 {[%clk 0:01:36]} 25. Rxd2 {[%clk 0:01:20]}  Qxd2 {[%clk 0:01:37]} 26. Rc2 {[%clk 0:01:07]}  Qxe2+ {[%clk 0:01:37]} 27. Rxe2 {[%clk 0:01:08]}  c3 {[%clk 0:01:38]} 28. Rc2 {[%clk 0:01:05]}  Rd2+ {[%clk 0:01:37]} 0-1


[Site "https://www.chess.com"]

[Event "Titled Tuesday Blitz May 9 Late 2023"]
[White "Colpe, Malte"]
[Black "angelgab3"]
[WhiteFideId "24623075"]
[WhiteElo "2289"]
[BlackElo "2529"]
[Result "1-0"]
[Round "10"]
[TimeControl "180+2"]
[Date "2023.05.09"]
[WhiteClock "0:02:07"]
[BlackClock "0:02:11"]

1. Nf3 {[%clk 0:02:58]}  Nf6 {[%clk 0:02:57]} 2. c4 {[%clk 0:02:57]}  e6 {[%clk 0:02:57]} 3. e3 {[%clk 0:02:57]}  d5 {[%clk 0:02:58]} 4. Nc3 {[%clk 0:02:57]}  Be7 {[%clk 0:02:56]} 5. d4 {[%clk 0:02:57]}  O-O {[%clk 0:02:56]} 6. b3 {[%clk 0:02:56]}  c5 {[%clk 0:02:55]} 7. cxd5 {[%clk 0:02:56]}  Nxd5 {[%clk 0:02:56]} 8. Bb2 {[%clk 0:02:54]}  Nc6 {[%clk 0:02:56]} 9. dxc5 {[%clk 0:02:53]}  Bf6 {[%clk 0:02:51]} 10. Qd2 {[%clk 0:02:41]}  Qa5 {[%clk 0:02:35]} 11. Nxd5 {[%clk 0:02:33]}  Qxd2+ {[%clk 0:02:35]} 12. Kxd2 {[%clk 0:02:29]}  Bxb2 {[%clk 0:02:36]} 13. Rb1 {[%clk 0:02:29]}  Ba3 {[%clk 0:02:37]} 14. Nc7 {[%clk 0:02:18]}  Rb8 {[%clk 0:02:36]} 15. Nb5 {[%clk 0:02:17]}  Bxc5 {[%clk 0:02:34]} 16. Bd3 {[%clk 0:02:16]}  Rd8 {[%clk 0:02:31]} 17. Ke2 {[%clk 0:02:14]}  a6 {[%clk 0:02:28]} 18. Nc3 {[%clk 0:02:12]}  b5 {[%clk 0:02:25]} 19. Rbc1 {[%clk 0:02:09]}  Ba3 {[%clk 0:02:21]} 20. Rcd1 {[%clk 0:02:08]}  Nb4 {[%clk 0:02:11]} 21. Bxh7+ {[%clk 0:02:07]} 1-0


[Site "https://www.chess.com"]

[Event "Titled Tuesday Blitz May 9 Late 2023"]
[White "OPQRC"]
[Black "Shapiro, Daniel"]
[BlackFideId "2001780"]
[WhiteElo "2484"]
[BlackElo "2361"]
[Result "1-0"]
[Round "10"]
[TimeControl "180+2"]
[Date "2023.05.09"]
[WhiteClock "0:00:16"]
[BlackClock "0:00:09"]

1. e4 {[%clk 0:03:00]}  e5 {[%clk 0:02:55]} 2. Nf3 {[%clk 0:03:00]}  Nc6 {[%clk 0:02:56]} 3. Bc4 {[%clk 0:03:00]}  Bc5 {[%clk 0:02:55]} 4. c3 {[%clk 0:03:00]}  Qe7 {[%clk 0:02:52]} 5. O-O {[%clk 0:02:58]}  Bb6 {[%clk 0:02:50]} 6. d4 {[%clk 0:02:55]}  d6 {[%clk 0:02:50]} 7. b4 {[%clk 0:02:45]}  Nf6 {[%clk 0:02:33]} 8. Re1 {[%clk 0:02:42]}  Bg4 {[%clk 0:02:30]} 9. b5 {[%clk 0:02:34]}  Nd8 {[%clk 0:02:22]} 10. Bb2 {[%clk 0:02:30]}  O-O {[%clk 0:02:11]} 11. h3 {[%clk 0:02:30]}  Bd7 {[%clk 0:02:00]} 12. a4 {[%clk 0:02:19]}  c6 {[%clk 0:01:41]} 13. Nbd2 {[%clk 0:02:18]}  h6 {[%clk 0:01:34]} 14. Nf1 {[%clk 0:02:16]}  Bc7 {[%clk 0:01:28]} 15. Ng3 {[%clk 0:02:15]}  g6 {[%clk 0:01:19]} 16. Qd2 {[%clk 0:02:13]}  Kg7 {[%clk 0:01:18]} 17. Rad1 {[%clk 0:02:13]}  Ne6 {[%clk 0:01:15]} 18. Bxe6 {[%clk 0:02:01]}  fxe6 {[%clk 0:00:59]} 19. dxe5 {[%clk 0:01:57]}  dxe5 {[%clk 0:00:57]} 20. c4 {[%clk 0:01:56]}  Rad8 {[%clk 0:00:50]} 21. Nxe5 {[%clk 0:01:54]}  Be8 {[%clk 0:00:43]} 22. Qe3 {[%clk 0:01:52]}  Bb6 {[%clk 0:00:38]} 23. Qe2 {[%clk 0:01:27]}  Kh7 {[%clk 0:00:36]} 24. Rxd8 {[%clk 0:01:20]}  Qxd8 {[%clk 0:00:35]} 25. Nd3 {[%clk 0:01:17]}  Qe7 {[%clk 0:00:30]} 26. Rd1 {[%clk 0:01:13]}  Nh5 {[%clk 0:00:28]} 27. Nxh5 {[%clk 0:01:03]}  gxh5 {[%clk 0:00:29]} 28. Qc2 {[%clk 0:00:46]}  Qh4 {[%clk 0:00:26]} 29. c5 {[%clk 0:00:41]}  Bc7 {[%clk 0:00:26]} 30. Qc3 {[%clk 0:00:38]}  Rg8 {[%clk 0:00:25]} 31. Ne5 {[%clk 0:00:22]}  Qf4 {[%clk 0:00:23]} 32. g3 {[%clk 0:00:20]}  Qxe4 {[%clk 0:00:22]} 33. Nd7 {[%clk 0:00:18]}  Qg6 {[%clk 0:00:20]} 34. Nf6+ {[%clk 0:00:18]}  Kg7 {[%clk 0:00:09]} 35. Nxe8+ {[%clk 0:00:18]}  Kf7 {[%clk 0:00:09]} 36. Nxc7 {[%clk 0:00:16]} 1-0


[Site "https://www.chess.com"]

[Event "Titled Tuesday Blitz May 9 Late 2023"]
[White "Al-Saffar, Araz Basim Mohammed S"]
[Black "Prydun, Andriy"]
[WhiteFideId "4801040"]
[BlackFideId "14145898"]
[WhiteElo "2304"]
[BlackElo "2164"]
[Result "1-0"]
[Round "10"]
[TimeControl "180+2"]
[Date "2023.05.09"]
[WhiteClock "0:00:33"]
[BlackClock "0:00:01"]

1. d4 {[%clk 0:03:00]}  Nf6 {[%clk 0:02:59]} 2. c4 {[%clk 0:03:00]}  c6 {[%clk 0:02:58]} 3. Nc3 {[%clk 0:03:00]}  d5 {[%clk 0:02:57]} 4. cxd5 {[%clk 0:03:01]}  cxd5 {[%clk 0:02:58]} 5. Bf4 {[%clk 0:03:01]}  Nc6 {[%clk 0:02:55]} 6. e3 {[%clk 0:03:02]}  Bg4 {[%clk 0:02:55]} 7. Qb3 {[%clk 0:03:01]}  Na5 {[%clk 0:02:55]} 8. Qa4+ {[%clk 0:03:01]}  Bd7 {[%clk 0:02:55]} 9. Qc2 {[%clk 0:03:02]}  e6 {[%clk 0:02:48]} 10. Nf3 {[%clk 0:03:01]}  Rc8 {[%clk 0:02:40]} 11. Bd3 {[%clk 0:03:01]}  Bb4 {[%clk 0:02:35]} 12. O-O {[%clk 0:03:00]}  h6 {[%clk 0:02:33]} 13. Ne5 {[%clk 0:02:35]}  O-O {[%clk 0:02:23]} 14. Rfc1 {[%clk 0:02:33]}  a6 {[%clk 0:02:12]} 15. h3 {[%clk 0:02:26]}  Bb5 {[%clk 0:02:10]} 16. Bxb5 {[%clk 0:02:22]}  axb5 {[%clk 0:02:11]} 17. Qd3 {[%clk 0:02:23]}  Nc4 {[%clk 0:02:10]} 18. b3 {[%clk 0:02:21]}  Bxc3 {[%clk 0:01:35]} 19. Rxc3 {[%clk 0:02:18]}  Nd6 {[%clk 0:01:35]} 20. Rac1 {[%clk 0:02:03]}  Ra8 {[%clk 0:01:35]} 21. R1c2 {[%clk 0:01:53]}  Qb6 {[%clk 0:01:28]} 22. Rc5 {[%clk 0:01:47]}  Nfe4 {[%clk 0:01:25]} 23. Rc7 {[%clk 0:01:46]}  Rfc8 {[%clk 0:01:22]} 24. Rxc8+ {[%clk 0:01:40]}  Rxc8 {[%clk 0:01:22]} 25. f3 {[%clk 0:01:38]}  Rxc2 {[%clk 0:01:15]} 26. Qxc2 {[%clk 0:01:39]}  Nf6 {[%clk 0:01:15]} 27. Nd3 {[%clk 0:01:39]}  Nd7 {[%clk 0:01:02]} 28. Nc5 {[%clk 0:01:32]}  Nf6 {[%clk 0:00:56]} 29. Bxd6 {[%clk 0:01:25]}  Qxd6 {[%clk 0:00:55]} 30. Nxb7 {[%clk 0:01:25]}  Qg3 {[%clk 0:00:47]} 31. Qf2 {[%clk 0:01:25]}  Qb8 {[%clk 0:00:46]} 32. Nc5 {[%clk 0:01:22]}  h5 {[%clk 0:00:45]} 33. Qd2 {[%clk 0:01:07]}  b4 {[%clk 0:00:42]} 34. Nd3 {[%clk 0:01:06]}  h4 {[%clk 0:00:41]} 35. Qxb4 {[%clk 0:01:03]}  Qc8 {[%clk 0:00:40]} 36. Nc5 {[%clk 0:00:58]}  Nh5 {[%clk 0:00:38]} 37. a4 {[%clk 0:00:50]}  Qc7 {[%clk 0:00:21]} 38. a5 {[%clk 0:00:40]}  Ng3 {[%clk 0:00:15]} 39. Qb6 {[%clk 0:00:37]}  Ne2+ {[%clk 0:00:14]} 40. Kf2 {[%clk 0:00:37]}  Qg3+ {[%clk 0:00:14]} 41. Kxe2 {[%clk 0:00:37]}  Qxg2+ {[%clk 0:00:14]} 42. Kd3 {[%clk 0:00:37]}  Qf1+ {[%clk 0:00:13]} 43. Kc3 {[%clk 0:00:36]}  Qe1+ {[%clk 0:00:14]} 44. Kb2 {[%clk 0:00:35]}  Qd2+ {[%clk 0:00:04]} 45. Ka3 {[%clk 0:00:34]}  Qc1+ {[%clk 0:00:02]} 46. Kb4 {[%clk 0:00:34]}  Qd2+ {[%clk 0:00:02]} 47. Kb5 {[%clk 0:00:33]}  Qe2+ {[%clk 0:00:02]} 48. Kc6 {[%clk 0:00:32]}  Qxf3 {[%clk 0:00:01]} 49. Qd8+ {[%clk 0:00:31]}  Kh7 {[%clk 0:00:01]} 50. Qxh4+ {[%clk 0:00:32]}  Kg6 {[%clk 0:00:02]} 51. Qg4+ {[%clk 0:00:32]}  Qxg4 {[%clk 0:00:01]} 52. hxg4 {[%clk 0:00:33]} 1-0


[Site "https://www.chess.com"]